fUST/lending_fUST_20240405
["ID","MTS","AMOUNT","RATE_DAILY","PERIOD"]
[321531586,1712295042952,-400.49058297,0.00046575,30]
[321531588,1712295042961,-162.228683,0.00046781,30]
[321531590,1712295042970,-192.293757,0.00046781,30]
[321531591,1712295042980,-163.89835,0.00046781,30]
[321531592,1712295042990,-162.228683,0.00046781,30]
[321531593,1712295042999,-192.293757,0.00046781,30]
[321531594,1712295043009,-163.89835,0.00046781,30]
[321531596,1712295043019,-618.39,0.00046848,5]
[321531597,1712295043028,-618.39,0.00046848,5]
[321531598,1712295043037,-618.39,0.00046848,5]
[321531599,1712295043047,-618.39,0.00046848,5]
[321531600,1712295043057,-484.50850888,0.00046849,5]
[321531601,1712295043067,-500.0,0.00046849,5]
[321531602,1712295043077,-500.0,0.00046849,5]
[321531603,1712295043091,-500.0,0.00046849,5]
[321531604,1712295043100,-500.0,0.00046849,5]
[321531605,1712295043109,-755.62,0.00046849,5]
[321531606,1712295043118,-500.0,0.00046849,5]
[321531608,1712295043130,-500.0,0.00046849,5]
[321531610,1712295043139,-1000.0,0.00046849,5]
[321531612,1712295043148,-500.0,0.00046849,5]
[321531614,1712295043158,-500.0,0.00046849,5]
[321531616,1712295043168,-202.50438416,0.00046849,5]
[321531617,1712295043177,-500.0,0.00046849,5]
[321531618,1712295043186,-500.0,0.00046849,5]
[321531619,1712295043194,-200.85046633,0.00046849,5]
[321531620,1712295043204,-500.0,0.00046849,5]
[321531622,1712295043214,-500.0,0.00046849,5]
[321531626,1712295043222,-504.72581952,0.00046849,5]
[321531628,1712295043231,-500.0,0.00046849,5]
[321531631,1712295043240,-500.0,0.00046849,5]
[321531634,1712295043250,-500.0,0.00046849,5]
[321531637,1712295043259,-1161.88,0.00046849,5]
[321531641,1712295043269,-500.0,0.00046849,5]
[321531645,1712295043279,-500.0,0.00046849,5]
[321531649,1712295043288,-500.0,0.00046849,5]
[321531652,1712295043298,-500.0,0.00046849,5]
[321531654,1712295043307,-500.0,0.00046849,5]
[321531658,1712295043316,-500.0,0.00046849,5]
[321531663,1712295043326,-500.0,0.00046849,5]
[321531667,1712295043336,-500.0,0.00046849,5]
[321531669,1712295043345,-500.0,0.00046849,5]
[321531671,1712295043354,-500.0,0.00046849,5]
[321531675,1712295043364,-1084.5,0.00046849,5]
[321531678,1712295043374,-627.12,0.00046849,5]
[321531679,1712295043382,-500.0,0.00046849,5]
[321531681,1712295043392,-341.94810514,0.00046849,5]
[321531684,1712295043402,-160.79041272,0.00046849,5]
[321531686,1712295043412,-500.0,0.00046849,5]
[321531687,1712295043421,-525.0926877,0.00046849,5]
[321531689,1712295043430,-500.0,0.00046849,5]
[321531691,1712295043440,-500.0,0.00046849,5]
[321531692,1712295043449,-505.37152023,0.00046849,5]
[321531693,1712295043460,-500.0,0.00046849,5]
[321531694,1712295043469,-503.6371254,0.00046849,5]
[321531695,1712295043479,-500.0,0.00046849,5]
[321531697,1712295043488,-506.99385982,0.00046849,5]
[321531700,1712295043497,-5768.78,0.00046849,5]
[321531703,1712295043507,-480.5817534,0.00046849,5]
[321531706,1712295043516,-500.0,0.00046849,5]
[321531709,1712295043524,-2884.7,0.00046849,5]
[321531712,1712295043534,-343.98796203,0.00046849,5]
[321531715,1712295043548,-756.07203797,0.00046849,5]
[321531718,1712295043557,-500.0,0.00046849,5]
[321531721,1712295043566,-500.0,0.00046849,5]
[321531724,1712295043575,-500.0,0.00046849,5]
[321531727,1712295043584,-500.0,0.00046849,5]
[321531730,1712295043593,-500.0,0.00046849,5]
[321531732,1712295043602,-500.0,0.00046849,5]
[321531734,1712295043611,-500.0,0.00046849,5]
[321531736,1712295043621,-500.0,0.00046849,5]
[321531746,1712295043711,-509.40720171,0.00046849,5]
[321531748,1712295043720,-516.11208449,0.00046849,5]
[321531750,1712295043729,-656.83,0.00046849,5]
[321531752,1712295043739,-500.0,0.00046849,5]
[321531754,1712295043748,-500.0,0.00046849,5]
[321531756,1712295043757,-500.0,0.00046849,5]
[321531758,1712295043766,-3793.04,0.00046849,7]
[321531760,1712295043775,-500.0,0.00046849,5]
[321531762,1712295043784,-7373.75,0.00046849,5]
[321531764,1712295043793,-500.0,0.00046849,5]
[321531766,1712295043802,-4813.74,0.00046849,5]
[321531768,1712295043811,-500.0,0.00046849,5]
[321531770,1712295043820,-546.35,0.00046849,5]
[321531772,1712295043829,-500.0,0.00046849,5]
[321531774,1712295043838,-6441.71052631,0.00046849,5]
[321531776,1712295043849,-1053.12903298,0.00046849,5]
[321531795,1712295044016,-1691.0597865,0.00046849,5]
[321531815,1712295044211,-1446.23419531,0.00044999,2]
[321531817,1712295044220,-153.0,0.0004545,2]
[321531820,1712295044230,-2759.98573443,0.00046849,5]
[321531823,1712295044251,-4817.57491978,0.00046849,5]
[321531825,1712295044260,-500.0,0.00046849,5]
[321531827,1712295044269,-500.0,0.00046849,5]
[321531829,1712295044278,-500.0,0.00046849,5]
[321531831,1712295044287,-336.32508023,0.00046849,5]
[321531833,1712295044298,-163.67491977,0.00046849,5]
[321531835,1712295044307,-500.0,0.00046849,5]
[321531837,1712295044316,-500.0,0.00046849,5]
[321531839,1712295044325,-500.0,0.00046849,5]
[321531841,1712295044334,-500.0,0.00046849,5]
[321531843,1712295044343,-7785.37,0.00046849,5]
[321531845,1712295044352,-500.0,0.00046849,5]
[321531847,1712295044360,-500.0,0.00046849,5]
[321531849,1712295044369,-16249.43,0.00046849,5]
[321531851,1712295044382,-685.85,0.00046849,5]
[321531853,1712295044390,-541.26,0.00046849,5]
[321531855,1712295044399,-646.98,0.00046849,5]
[321531857,1712295044408,-500.0,0.00046849,5]
[321531859,1712295044417,-500.0,0.00046849,5]
[321531861,1712295044425,-500.0,0.00046849,5]
[321531863,1712295044434,-1259.1,0.00046849,5]
[321531865,1712295044444,-500.0,0.00046849,5]
[321531867,1712295044453,-580.04,0.00046849,5]
[321531869,1712295044462,-523.41913237,0.00046849,5]
[321531871,1712295044472,-500.0,0.00046849,5]
[321531873,1712295044481,-734.78,0.00046849,5]
[321531875,1712295044490,-500.0,0.00046849,5]
[321531877,1712295044499,-1338.62,0.00046849,5]
[321531879,1712295044508,-520.94,0.00046849,5]
[321531881,1712295044517,-3009.52,0.00046849,5]
[321531883,1712295044526,-500.0,0.00046849,5]
[321531885,1712295044535,-500.0,0.00046849,5]
[321531887,1712295044544,-500.0,0.00046849,5]
[321531888,1712295044553,-500.0,0.00046849,5]
[321531890,1712295044563,-1165.46,0.00046849,5]
[321531892,1712295044572,-2128.91,0.00046849,5]
[321531894,1712295044581,-500.0,0.00046849,5]
[321531897,1712295044590,-500.0,0.00046849,5]
[321531899,1712295044599,-500.0,0.00046849,5]
[321531900,1712295044609,-500.0,0.00046849,5]
[321531902,1712295044618,-504.15914635,0.00046849,5]
[321531905,1712295044629,-6088.49,0.00046849,5]
[321531907,1712295044639,-362.15271948,0.00046849,5]
[321531909,1712295044648,-1000.0,0.00046849,3]
[321531911,1712295044657,-500.0,0.00046878,60]
[321531913,1712295044667,-1953.40565211,0.0004688,120]
[321531915,1712295044681,-389.43980244,0.000469,2]
[321531917,1712295044690,-165.0,0.00047,90]
[321531919,1712295044699,-4533.45249495,0.00047023,2]
[321531921,1712295044708,-153.32881384,0.00047085,30]
[321531923,1712295044717,-202.5506203,0.00047094,2]
[321531925,1712295044727,-202.5506203,0.00047094,2]
[321531927,1712295044736,-206.6957573,0.00047094,2]
[321531928,1712295044746,-202.5506203,0.00047094,2]
[321531930,1712295044755,-1085.45,0.00047122,7]
[321531932,1712295044765,-976.91,0.00047122,7]
[321531935,1712295044775,-976.91,0.00047122,7]
[321531937,1712295044785,-500.0,0.00047123,5]
[321531938,1712295044795,-192.55612524,0.00047123,5]
[321531941,1712295044804,-516.95930639,0.00047123,5]
[321531943,1712295044813,-500.0,0.00047123,5]
[321531944,1712295044822,-755.62,0.00047123,5]
[321531946,1712295044831,-500.0,0.00047123,5]
[321531948,1712295044840,-500.0,0.00047123,5]
[321531950,1712295044850,-1000.0,0.00047123,5]
[321531952,1712295044859,-500.0,0.00047123,5]
[321531954,1712295044869,-500.0,0.00047123,5]
[321531957,1712295044883,-500.0,0.00047123,5]
[321531959,1712295044892,-500.0,0.00047123,5]
[321531961,1712295044901,-500.0,0.00047123,5]
[321531963,1712295044910,-208.07396459,0.00047123,5]
[321531965,1712295044921,-500.0,0.00047123,5]
[321531967,1712295044931,-500.0,0.00047123,5]
[321531969,1712295044940,-500.0,0.00047123,5]
[321531971,1712295044949,-1161.88,0.00047123,5]
[321531973,1712295044958,-500.0,0.00047123,5]
[321531975,1712295044967,-500.0,0.00047123,5]
[321531977,1712295044976,-500.0,0.00047123,5]
[321531979,1712295044985,-500.0,0.00047123,5]
[321531981,1712295044995,-500.0,0.00047123,5]
[321531983,1712295045004,-500.0,0.00047123,5]
[321531985,1712295045013,-500.0,0.00047123,5]
[321531987,1712295045022,-515.21425823,0.00047123,5]
[321531989,1712295045031,-500.0,0.00047123,5]
[321531991,1712295045040,-500.0,0.00047123,5]
[321531993,1712295045050,-1084.5,0.00047123,5]
[321531995,1712295045060,-218.50672808,0.00047123,5]
[321531997,1712295045069,-629.89452688,0.00047123,5]
[321531999,1712295045079,-500.0,0.00047123,5]
[321532001,1712295045089,-500.0,0.00047123,5]
[321532003,1712295045098,-500.0,0.00047123,5]
[321532005,1712295045107,-5768.78,0.00047123,5]
[321532007,1712295045116,-500.0,0.00047123,5]
[321532009,1712295045128,-2884.7,0.00047123,5]
[321532011,1712295045137,-1100.06,0.00047123,5]
[321532013,1712295045146,-507.85599407,0.00047123,5]
[321532015,1712295045156,-500.0,0.00047123,5]
[321532016,1712295045165,-500.0,0.00047123,5]
[321532019,1712295045174,-500.0,0.00047123,5]
[321532020,1712295045183,-500.0,0.00047123,5]
[321532022,1712295045193,-500.0,0.00047123,5]
[321532025,1712295045203,-500.0,0.00047123,5]
[321532027,1712295045212,-656.83,0.00047123,5]
[321532029,1712295045221,-500.0,0.00047123,5]
[321532031,1712295045230,-500.0,0.00047123,5]
[321532033,1712295045239,-500.0,0.00047123,5]
[321532035,1712295045249,-3793.04,0.00047123,7]
[321532037,1712295045258,-500.0,0.00047123,5]
[321532039,1712295045267,-7373.75,0.00047123,5]
[321532041,1712295045276,-500.0,0.00047123,5]
[321532043,1712295045285,-4813.74,0.00047123,5]
[321532045,1712295045294,-500.0,0.00047123,5]
[321532047,1712295045303,-546.35,0.00047123,5]
[321532049,1712295045312,-510.96603401,0.00047123,5]
[321532051,1712295045321,-16763.46,0.00047123,5]
[321532052,1712295045330,-500.0,0.00047123,5]
[321532055,1712295045339,-509.42788603,0.00047123,5]
[321532057,1712295045349,-500.0,0.00047123,5]
[321532059,1712295045357,-634.6804023,0.00047123,5]
[321532060,1712295045367,-500.0,0.00047123,5]
[321532062,1712295045378,-588.1570732,0.00047123,5]
[321532064,1712295045387,-500.0,0.00047123,5]
[321532067,1712295045397,-500.0,0.00047123,5]
[321532068,1712295045406,-7785.37,0.00047123,5]
[321532071,1712295045416,-500.0,0.00047123,5]
[321532072,1712295045425,-500.0,0.00047123,5]
[321532074,1712295045435,-16249.43,0.00047123,5]
[321532076,1712295045444,-685.85,0.00047123,5]
[321532078,1712295045454,-541.26,0.00047123,5]
[321532080,1712295045463,-646.98,0.00047123,5]
[321532082,1712295045472,-406.97628851,0.00047123,5]
[321532093,1712295045558,-500.0,0.00047123,5]
[321532095,1712295045568,-154.95792238,0.00047123,5]
[321532097,1712295045577,-1259.1,0.00047123,5]
[321532099,1712295045586,-500.0,0.00047123,5]
[321532101,1712295045595,-580.04,0.00047123,5]
[321532103,1712295045604,-508.00245199,0.00047123,5]
[321532105,1712295045613,-734.78,0.00047123,5]
[321532107,1712295045624,-444.81307612,0.00047123,5]
[321532109,1712295045637,-55.18692388,0.00047123,5]
[321532111,1712295045646,-1338.62,0.00047123,5]
[321532113,1712295045655,-520.94,0.00047123,5]
[321532115,1712295045664,-3009.52,0.00047123,5]
[321532117,1712295045674,-500.0,0.00047123,5]
[321532119,1712295045683,-516.47018297,0.00047123,5]
[321532121,1712295045692,-500.0,0.00047123,5]
[321532123,1712295045702,-500.0,0.00047123,5]
[321532125,1712295045711,-1165.46,0.00047123,5]
[321532127,1712295045720,-2128.91,0.00047123,5]
[321532129,1712295045729,-500.0,0.00047123,5]
[321532130,1712295045738,-500.0,0.00047123,5]
[321532131,1712295045747,-500.0,0.00047123,5]
[321532133,1712295045756,-500.0,0.00047123,5]
[321532135,1712295045765,-6088.49,0.00047123,5]
[321532137,1712295045774,-770.0,0.00047176,3]
[321532139,1712295045783,-7374.96497595,0.0004725,120]
[321532141,1712295045794,-49313.03502405,0.0004725,120]
[321532143,1712295045803,-37007.24950521,0.0004738,120]
[321532145,1712295045814,-2939.34236644,0.0004738,120]
[321532457,1712295048795,-86000.0,0.0004738,120]
[321536434,1712296232033,-263.606952,0.00039916,2]
[321536436,1712296232043,-2221.52799117,0.00039992,4]
[321536438,1712296232054,-413.95173322,0.00039992,4]
[321536440,1712296232063,-400.0,0.00039992,3]
[321536442,1712296232072,-400.0,0.00039992,5]
[321536444,1712296232081,-1600.0,0.0004,2]
[321536446,1712296232091,-199.81778564,0.00041832,4]
[321536447,1712296232100,-24900.0,0.00041833,2]
[321536449,1712296232110,-179.995171,0.00041833,120]
[321536451,1712296232119,-172.1084014,0.00042448,2]
[321536453,1712296232128,-568.29988079,0.00042748,4]
[321536455,1712296232137,-24649.61125298,0.0004275,2]
[321536457,1712296232146,-500.0,0.0004314,2]
[321536458,1712296232156,-560.0,0.00043991,3]
[321536459,1712296232165,-176.286322,0.00044554,30]
[321536460,1712296232174,-520.50176192,0.00044999,120]
[321536461,1712296232183,-500.0,0.00044999,2]
[321536462,1712296232192,-500.0,0.00044999,2]
[321536463,1712296232201,-500.0,0.00044999,2]
[321536464,1712296232211,-896.45914613,0.00045,40]
[321536465,1712296232220,-156.78265129,0.00045,4]
[321536466,1712296232229,-156.18623591,0.00045,2]
[321536467,1712296232239,-155.5137592,0.00045,31]
[321536468,1712296232248,-6450.43947688,0.00045,120]
[321536469,1712296232257,-192.29655676,0.00045,4]
[321536584,1712296237998,-7470.17642453,0.00039991,4]
[321536587,1712296238009,-4022.93715208,0.00045,4]
[321536590,1712296238020,-15396.33932443,0.00045,4]
[321536593,1712296238031,-152.26235286,0.00045092,6]
[321536596,1712296238041,-327.58052847,0.0004528,2]
[321536598,1712296238054,-176.286322,0.00045296,30]
[321536601,1712296238065,-176.286322,0.00046039,30]
[321536604,1712296238075,-202.5506203,0.00046272,2]
[321536607,1712296238084,-1500.0,0.00046475,2]
[321536610,1712296238095,-1892.59435284,0.00046573,4]
[321536612,1712296238106,-771.02432504,0.00046573,2]
[321536615,1712296238116,-240.16900843,0.00046573,4]
[321536618,1712296238127,-5626.43164053,0.00046574,120]
[321536621,1712296238136,-1567.10400879,0.00046575,5]
[321536624,1712296238146,-503.58433237,0.00046575,5]
[321536626,1712296238155,-500.0,0.00046575,5]
[321536630,1712296238166,-500.0,0.00046575,5]
[321536633,1712296238175,-500.0,0.00046575,5]
[321536634,1712296238185,-155.07598723,0.00046575,5]
[321536638,1712296238195,-214.5244106,0.00046575,5]
[321536641,1712296238205,-153.956183,0.00046575,7]
[321536644,1712296238216,-500.0,0.00046575,5]
[321536647,1712296238226,-499.06785735,0.00046575,5]
[321536648,1712296238235,-500.0,0.00046575,5]
[321536651,1712296238245,-500.0,0.00046575,5]
[321536654,1712296238255,-500.0,0.00046575,5]
[321536657,1712296238265,-500.0,0.00046575,5]
[321536659,1712296238274,-500.0,0.00046575,5]
[321536662,1712296238283,-500.0,0.00046575,5]
[321536666,1712296238293,-500.0,0.00046575,5]
[321536669,1712296238308,-115.14884715,0.00046575,5]
[321537256,1712296243339,-384.85115285,0.00046575,5]
[321537258,1712296243348,-500.0,0.00046575,5]
[321537259,1712296243358,-500.0,0.00046575,5]
[321537261,1712296243368,-511.86887927,0.00046575,5]
[321537263,1712296243377,-500.0,0.00046575,5]
[321537265,1712296243386,-500.0,0.00046575,5]
[321537267,1712296243396,-507.53879091,0.00046575,5]
[321537269,1712296243406,-506.83259178,0.00046575,5]
[321537271,1712296243416,-589.34132669,0.00046575,5]
[321537273,1712296243426,-500.0,0.00046575,5]
[321537275,1712296243435,-500.0,0.00046575,5]
[321537277,1712296243446,-500.0,0.00046575,5]
[321537279,1712296243455,-500.0,0.00046575,5]
[321537281,1712296243465,-500.0,0.00046575,5]
[321537283,1712296243474,-500.0,0.00046575,5]
[321537285,1712296243487,-500.0,0.00046575,5]
[321537287,1712296243496,-500.0,0.00046575,5]
[321537289,1712296243506,-462.98328465,0.00046575,5]
[321537291,1712296243515,-500.0,0.00046575,5]
[321537293,1712296243527,-503.50166607,0.00046575,5]
[321537295,1712296243537,-633.33409905,0.00046575,5]
[321537297,1712296243547,-1138.69,0.00046575,5]
[321537299,1712296243558,-505.03676177,0.00046575,5]
[321537301,1712296243567,-500.0,0.00046575,5]
[321537303,1712296243576,-500.0,0.00046575,5]
[321537305,1712296243585,-500.0,0.00046575,5]
[321537307,1712296243594,-503.29431866,0.00046575,5]
[321537309,1712296243603,-504.3613039,0.00046575,5]
[321537311,1712296243613,-500.0,0.00046575,5]
[321537313,1712296243622,-500.0,0.00046575,5]
[321537315,1712296243631,-500.0,0.00046575,5]
[321537317,1712296243640,-500.0,0.00046575,5]
[321537318,1712296243649,-605.17768539,0.00046575,5]
[321537320,1712296243659,-500.0,0.00046575,5]
[321537322,1712296243668,-500.75649508,0.00046575,5]
[321537324,1712296243677,-502.80166263,0.00046575,5]
[321537327,1712296243687,-500.0,0.00046575,5]
[321537329,1712296243697,-501.57523464,0.00046575,5]
[321537330,1712296243706,-500.0,0.00046575,5]
[321537333,1712296243715,-503.9547181,0.00046575,5]
[321537334,1712296243724,-500.0,0.00046575,5]
[321537347,1712296243833,-500.0,0.00046575,5]
[321537349,1712296243847,-500.81267653,0.00046575,5]
[321537351,1712296243856,-500.96776141,0.00046575,5]
[321537353,1712296243866,-500.0,0.00046575,5]
[321537355,1712296243874,-501.5449309,0.00046575,5]
[321537357,1712296243883,-500.0,0.00046575,5]
[321537359,1712296243893,-500.0,0.00046575,5]
[321537361,1712296243902,-500.0,0.00046575,5]
[321537363,1712296243910,-503.18163469,0.00046575,5]
[321537365,1712296243919,-500.0,0.00046575,5]
[321537367,1712296243928,-500.0,0.00046575,5]
[321537369,1712296243943,-500.0,0.00046575,5]
[321537371,1712296243952,-2634.01,0.00046575,5]
[321537373,1712296243962,-506.596657,0.00046575,5]
[321537375,1712296243971,-603.76024405,0.00046575,5]
[321537377,1712296243981,-503.12039216,0.00046575,5]
[321537379,1712296243990,-151.0,0.00046575,7]
[321537381,1712296244000,-500.0,0.00046575,5]
[321537383,1712296244009,-151.0,0.00046575,7]
[321537385,1712296244018,-537.34301772,0.00046575,5]
[321537387,1712296244027,-500.0,0.00046575,5]
[321537389,1712296244037,-506.26006713,0.00046575,5]
[321537391,1712296244046,-500.0,0.00046575,5]
[321537392,1712296244058,-500.0,0.00046575,5]
[321537394,1712296244068,-505.51089623,0.00046575,5]
[321537396,1712296244077,-307.51897264,0.00046575,5]
[321537398,1712296244086,-3472.01,0.00046575,7]
[321537400,1712296244095,-205.730126,0.00046575,7]
[321537402,1712296244104,-500.0,0.00046575,5]
[321537404,1712296244114,-467.20094359,0.00046575,5]
[321537406,1712296244123,-500.0,0.00046575,5]
[321537408,1712296244132,-500.0,0.00046575,5]
[321537410,1712296244142,-516.7407135,0.00046575,2]
[321537412,1712296244152,-504.69811811,0.00046575,5]
[321537414,1712296244161,-635.33327816,0.00046575,5]
[321537416,1712296244170,-506.05242412,0.00046575,5]
[321537418,1712296244179,-501.0,0.00046575,5]
[321537420,1712296244188,-151.0,0.00046575,7]
[321537422,1712296244197,-151.0,0.00046575,7]
[321537424,1712296244206,-500.0,0.00046575,5]
[321537426,1712296244215,-500.0,0.00046575,5]
[321537428,1712296244224,-948.94,0.00046575,5]
[321537430,1712296244233,-500.0,0.00046575,5]
[321537432,1712296244242,-500.0,0.00046575,5]
[321537434,1712296244252,-500.0,0.00046575,5]
[321537436,1712296244261,-500.72595541,0.00046575,5]
[321537438,1712296244270,-500.0,0.00046575,5]
[321537439,1712296244279,-500.0,0.00046575,5]
[321537440,1712296244288,-500.0,0.00046575,5]
[321537441,1712296244298,-500.0,0.00046575,5]
[321537442,1712296244312,-500.0,0.00046575,5]
[321537443,1712296244322,-500.0,0.00046575,5]
[321537444,1712296244331,-5068.52,0.00046575,5]
[321537445,1712296244341,-500.0,0.00046575,5]
[321537446,1712296244350,-500.0,0.00046575,5]
[321537447,1712296244359,-155.28232525,0.00046575,120]
[321537449,1712296244368,-500.0,0.00046575,5]
[321537451,1712296244377,-500.0,0.00046575,5]
[321537453,1712296244385,-500.0,0.00046575,5]
[321537455,1712296244394,-500.0,0.00046575,5]
[321537457,1712296244404,-500.0,0.00046575,5]
[321537459,1712296244413,-500.0,0.00046575,5]
[321537461,1712296244423,-500.0,0.00046575,5]
[321537463,1712296244432,-501.13499179,0.00046575,5]
[321537465,1712296244442,-500.0,0.00046575,5]
[321537467,1712296244452,-500.0,0.00046575,5]
[321537469,1712296244461,-500.0,0.00046575,5]
[321537471,1712296244471,-4212.02,0.00046575,5]
[321537473,1712296244480,-507.93082002,0.00046575,5]
[321537475,1712296244488,-500.0,0.00046575,5]
[321537477,1712296244497,-500.0,0.00046575,5]
[321537479,1712296244506,-186.378388,0.00046575,7]
[321537481,1712296244515,-186.378388,0.00046575,7]
[321537483,1712296244526,-500.0,0.00046575,5]
[321537485,1712296244535,-186.378388,0.00046575,7]
[321537487,1712296244544,-186.378388,0.00046575,7]
[321537489,1712296244554,-500.0,0.00046575,5]
[321537491,1712296244565,-514.06177178,0.00046575,5]
[321537493,1712296244574,-502.01270104,0.00046575,5]
[321537495,1712296244583,-500.0,0.00046575,5]
[321537497,1712296244592,-500.0,0.00046575,5]
[321537499,1712296244601,-162.454989,0.00046575,7]
[321537501,1712296244610,-500.0,0.00046575,5]
[321537503,1712296244620,-15250.3,0.00046575,5]
[321537505,1712296244629,-6547.19,0.00046575,5]
[321537507,1712296244638,-500.0,0.00046575,5]
[321537509,1712296244648,-503.78482727,0.00046575,5]
[321537510,1712296244657,-596.83,0.00046575,5]
[321537512,1712296244666,-500.0,0.00046575,5]
[321537515,1712296244675,-577.57268271,0.00046575,5]
[321537516,1712296244685,-12380.81,0.00046575,5]
[321537518,1712296244694,-7145.7,0.00046575,5]
[321537521,1712296244704,-831.38,0.00046575,5]
[321537523,1712296244713,-623.6,0.00046575,5]
[321537525,1712296244722,-457.92587501,0.00046575,5]
[321537527,1712296244731,-502.2860714,0.00046575,5]
[321537528,1712296244741,-500.0,0.00046575,5]
[321537530,1712296244750,-500.0,0.00046575,5]
[321537532,1712296244759,-151.0,0.00046575,7]
[321537534,1712296244769,-151.0,0.00046575,7]
[321537536,1712296244778,-501.89563018,0.00046575,5]
[321537538,1712296244787,-500.0,0.00046575,5]
[321537540,1712296244796,-514.94041582,0.00046575,5]
[321537542,1712296244806,-500.0,0.00046575,5]
[321537544,1712296244816,-529.84,0.00046575,5]
[321537546,1712296244827,-500.0,0.00046575,5]
[321537548,1712296244836,-508.19184045,0.00046575,5]
[321537550,1712296244844,-500.0,0.00046575,5]
[321537552,1712296244853,-500.0,0.00046575,5]
[321537554,1712296244862,-500.0,0.00046575,5]
[321537556,1712296244872,-1147.49,0.00046575,5]
[321537558,1712296244882,-500.0,0.00046575,5]
[321537560,1712296244891,-500.0,0.00046575,5]
[321537562,1712296244900,-586.94,0.00046575,5]
[321537564,1712296244909,-668.66,0.00046575,5]
[321537566,1712296244918,-500.0,0.00046575,5]
[321537568,1712296244928,-500.0,0.00046575,5]
[321537569,1712296244937,-1222.14,0.00046575,5]
[321537572,1712296244946,-500.0,0.00046575,5]
[321537574,1712296244956,-517.38717591,0.00046575,5]
[321537576,1712296244965,-500.0,0.00046575,5]
[321537578,1712296244974,-500.0,0.00046575,5]
[321537580,1712296244984,-2906.83,0.00046575,5]
[321537582,1712296244992,-500.0,0.00046575,5]
[321537584,1712296245001,-500.0,0.00046575,5]
[321537586,1712296245011,-500.0,0.00046575,5]
[321537588,1712296245020,-500.0,0.00046575,5]
[321537590,1712296245029,-500.0,0.00046575,5]
[321537591,1712296245039,-500.0,0.00046575,5]
[321537594,1712296245048,-1951.48,0.00046575,5]
[321537596,1712296245059,-5000.0,0.00046575,30]
[321537598,1712296245068,-1000.0,0.00046575,5]
[321537600,1712296245077,-5000.0,0.00046575,30]
[321537602,1712296245086,-5000.0,0.00046575,30]
[321537603,1712296245095,-5000.0,0.00046575,30]
[321537605,1712296245104,-5000.0,0.00046575,30]
[321537607,1712296245114,-3657.55957482,0.00046575,30]
[321537609,1712296245123,-502.13067898,0.00046575,5]
[321537611,1712296245132,-550.56537976,0.00046575,5]
[321537613,1712296245141,-610.59454447,0.00046575,5]
[321537615,1712296245151,-196.57376493,0.00046575,5]
[321537617,1712296245160,-509.03983397,0.00046575,5]
[321537619,1712296245169,-606.17496637,0.00046575,5]
[321537622,1712296245179,-500.0,0.00046575,5]
[321537624,1712296245190,-500.0,0.00046575,5]
[321537626,1712296245199,-500.0,0.00046575,5]
[321537628,1712296245208,-500.0,0.00046575,5]
[321537630,1712296245217,-500.0,0.00046575,5]
[321537632,1712296245226,-500.0,0.00046575,5]
[321537634,1712296245236,-500.0,0.00046575,5]
[321537636,1712296245245,-500.0,0.00046575,5]
[321537638,1712296245254,-500.0,0.00046575,5]